Workbook

Sheet Wind Study
A1: Wind Farm 1
B2: Production | D2: Vestas | E2: Gamesa | F2: GE | G2: Siemens
C3: Wind Farm Rated Power MW | D3: 28.8 | E3: 32 | F3: 25.6 | G3: 29.9
C4: Gross Energy Output GWh/annum | D4: 140.3 | E4: 138.2 | F4: 136.9 | G4: 136.7
C5: Wake effect | D5: 94.7 | E5: 94.5 | F5: 95.2 | G5: 95.9
C6: Availability | D6: 96.3 | E6: 96.3 | F6: 96.3 | G6: 96.3
C7: Electrical efficiency | D7: 98.4 | E7: 98.4 | F7: 98.4 | G7: 98.4
C8: Turbine performance | D8: 100 | E8: 100 | F8: 100 | G8: 100
C9: Environmental | D9: 99.5 | E9: 99.5 | F9: 99.5 | G9: 99.5
C10: Curtailment | D10: 100 | E10: 100 | F10: 100 | G10: 100
C11: Net Energy Output GWh/annum | D11: 125.3 | E11: 123.2 | F11: 122.9 | G11: 123.5
C12: Equivalent hours hours | D12: 4350 | E12: 3849 | F12: 4800 | G12: 4132
B14: Standard Deviation (uncertainty) | D14: Vestas | E14: Gamesa | F14: GE | G14: Siemens | M14: Base Std 1 | N14: 20.2
C15: In any one year period | D15: 20.2 | E15: 21.5 | F15: 17.6 | G15: 21 | M15: Base Std 2 | N15: 51
C16: In any ten year period | D16: 14.2 | E16: 15 | F16: 12.7 | G16: 14.7 | M16: Ratio | N16: =std_2a/std_1a -> 2.524752475
B18: 1 year | J18: Prob
C19: P50 | D19: ='Wind Study'!D11 -> 125.3 | E19: ='Wind Study'!E11 -> 123.2 | F19: ='Wind Study'!F11 -> 122.9 | G19: ='Wind Study'!G11 -> 123.5 | J19: 0.5
C20: P99 | D20: =_xlfn.NORM.INV($J20,D$11,D$15) -> 78.30777294 | E20: 73.18352071 | F20: 81.95627742 | G20: 74.64669465 | J20: 0.01
C21: p90 | D21: 99.41265838 | E21: 95.64664134 | F21: 100.3446924 | G21: 96.58741712 | J21: 0.1
B22: 10 year
C23: P50 | D23: ='Wind Study'!D11 -> 125.3 | E23: ='Wind Study'!E11 -> 123.2 | F23: ='Wind Study'!F11 -> 122.9 | G23: ='Wind Study'!G11 -> 123.5
C24: P99 | D24: =_xlfn.NORM.INV($J20,D$11,D$16) -> 92.26586019 | E24: 88.30478189 | F24: 93.355382 | G24: 89.30268625
C25: p90 | D25: 107.1019678 | E25: 103.9767265 | F25: 106.6242951 | G25: 104.661192
B27: Downside Case -- P99/P50 1 - year | D27: =D20/D19 -> 0.6249622741 | E27: =E20/E19 -> 0.5940220837 | F27: =F20/F19 -> 0.6668533557 | G27: =G20/G19 -> 0.6044266773
A29: Wind Farm 2
D30: Vestas | E30: Gamesa | F30: GE | G30: Siemens
C31: Wind Farm Rated Power MW | D31: 77.4 | E31: 88 | F31: 70.4 | G31: 80.5
C32: Gross Energy Output GWh/annum | D32: 370.6 | E32: 377.3 | F32: 370 | G32: 365.5
C33: Wake effect | D33: 90.7 | E33: 90 | F33: 91.6 | G33: 90.7
C34: Availability | D34: 96.3 | E34: 96.3 | F34: 96.3 | G34: 96.3
C35: Electrical efficiency | D35: 98 | E35: 98 | F35: 98 | G35: 98
C36: Turbine performance | D36: 100 | E36: 100 | F36: 100 | G36: 100
C37: Environmental | D37: 99.5 | E37: 99.5 | F37: 99.5 | G37: 99.5
C38: Curtailment | D38: 100 | E38: 100 | F38: 100 | G38: 100
C39: Net Energy Output GWh/annum | D39: 315.8 | E39: 318.8 | F39: 318.5 | G39: 311.5
C40: Equivalent hours hours | D40: 4081 | E40: 3623 | F40: 4524 | G40: 3869
C42: Standard Deviation (uncertainty) | D42: Vestas | E42: Gamesa | F42: GE | G42: Siemens
C43: In any one year period | D43: 51 | E43: 55.6 | F43: 47.4 | G43: 52.7
C44: In any ten year period | D44: 36.3 | E44: 38.8 | F44: 34.3 | G44: 37
B46: 1 year
C47: P50 | D47: ='Wind Study'!D39 -> 315.8 | E47: ='Wind Study'!E39 -> 318.8 | F47: ='Wind Study'!F39 -> 318.5 | G47: ='Wind Study'!G39 -> 311.5 | J47: 0.5
C48: P99 | D48: =_xlfn.NORM.INV($J48,D$39,D$43) -> 197.1562584 | E48: 189.4550582 | F48: 208.2311108 | G48: 188.901467 | J48: 0.01
C49: p90 | D49: 250.4408702 | E49: 247.545733 | F49: 257.7544558 | G49: 243.9622325 | J49: 0.1
B51: 10 year
C52: P50 | D52: ='Wind Study'!D39 -> 315.8 | E52: ='Wind Study'!E39 -> 318.8 | F52: ='Wind Study'!F39 -> 318.5 | G52: ='Wind Study'!G39 -> 311.5
C53: P99 | D53: =_xlfn.NORM.INV($J48,D$39,D$44) -> 231.3535722 | E53: 228.5377025 | F53: 238.7062679 | G53: 225.4251287
C54: p90 | D54: 269.2796782 | E54: 269.0757993 | F54: 274.5427813 | G54: 264.0825921
B56: Downside Case - P99 vs P50 1 Year | D56: =D48/D47 -> 0.6243073414 | E56: =E48/E47 -> 0.5942755903 | F56: =F48/F47 -> 0.653786847 | G56: =G48/G47 -> 0.6064252553

Sheet Financial Model
B1: Production | E1: Price | F1: =F57 -> 44 | H1: Equity IRR
B2: Credit Spread | E2: Dev Fee | F2: =H236 -> 0 | H2: Project IRR | I2: =F217 -> 0.07423903048
A4: Timeline
B5: Period | I5: 1 | J5: 2 | K5: 3 | L5: 4 | M5: 5 | N5: 6 | O5: 7 | P5: 8 | Q5: 9 | R5: 10 | S5: 11 | T5: 12 | U5: 13 | V5: 14 | W5: 15 | X5: 16 | Y5: 17 | Z5: 18 | AA5: 19 | AB5: 20 | AC5: 21 | AD5: 22 | AE5: 23 | AF5: 24 | AG5: 25 | AH5: 26 | AI5: 27 | AJ5: 28 | AK5: 29 | AL5: 30 | AM5: 31 | AN5: 32 | AO5: 33 | AP5: 34 | AQ5: 35 | AR5: 36 | AS5: 37 | AT5: 38 | AU5: 39 | AV5: 40 | AW5: 41 | AX5: 42 | AY5: 43 | AZ5: 44 | BA5: 45 | BB5: 46 | BC5: 47 | BD5: 48 | BE5: 49 | BF5: 50 | BG5: 51 | BH5: 52 | BI5: 53 | BJ5: 54 | BK5: 55 | BL5: 56 | BM5: 57 | BN5: 58 | BO5: 59 | BP5: 60
B6: Construction | F6: =F19 -> 18 | I6: =I5<=$F$6 -> TRUE | J6: =J5<=$F$6 -> TRUE | K6: TRUE | L6: TRUE | M6: TRUE | N6: TRUE | O6: TRUE | P6: TRUE | Q6: TRUE | R6: TRUE | S6: TRUE | T6: TRUE | U6: TRUE | V6: TRUE | W6: TRUE | X6: TRUE | Y6: TRUE | Z6: TRUE | AA6: FALSE | AB6: FALSE | AC6: FALSE | AD6: FALSE | AE6: FALSE | AF6: FALSE | AG6: FALSE | AH6: FALSE | AI6: FALSE | AJ6: FALSE | AK6: FALSE | AL6: FALSE | AM6: FALSE | AN6: FALSE | AO6: FALSE | AP6: FALSE | AQ6: FALSE | AR6: FALSE | AS6: FALSE | AT6: FALSE | AU6: FALSE | AV6: FALSE | AW6: FALSE | AX6: FALSE | AY6: FALSE | AZ6: FALSE | BA6: FALSE | BB6: FALSE | BC6: FALSE | BD6: FALSE | BE6: FALSE | BF6: FALSE | BG6: FALSE | BH6: FALSE | BI6: FALSE | BJ6: FALSE | BK6: FALSE | BL6: FALSE | BM6: FALSE | BN6: FALSE | BO6: FALSE | BP6: FALSE
B7: Months in Period | E7: =F15 -> 1 | F7: =F16 -> 12 | I7: =IF(I6,$E$7,$F$7) -> 1 | J7: =IF(J6,$E$7,$F$7) -> 1 | K7: 1 | L7: 1 | M7: 1 | N7: 1 | O7: 1 | P7: 1 | Q7: 1 | R7: 1 | S7: 1 | T7: 1 | U7: 1 | V7: 1 | W7: 1 | X7: 1 | Y7: 1 | Z7: 1 | AA7: 12 | AB7: 12 | AC7: 12 | AD7: 12 | AE7: 12 | AF7: 12 | AG7: 12 | AH7: 12 | AI7: 12 | AJ7: 12 | AK7: 12 | AL7: 12 | AM7: 12 | AN7: 12 | AO7: 12 | AP7: 12 | AQ7: 12 | AR7: 12 | AS7: 12 | AT7: 12 | AU7: 12 | AV7: 12 | AW7: 12 | AX7: 12 | AY7: 12 | AZ7: 12 | BA7: 12 | BB7: 12 | BC7: 12 | BD7: 12 | BE7: 12 | BF7: 12 | BG7: 12 | BH7: 12 | BI7: 12 | BJ7: 12 | BK7: 12 | BL7: 12 | BM7: 12 | BN7: 12 | BO7: 12 | BP7: 12
B8: Date: End of Period | F8: =F18 -> 2019-01-01 | I8: =F8 -> 2019-01-01 | J8: =EDATE(I8,J7) -> 2019-02-01 | K8: =EDATE(J8,K7) -> 2019-03-01 | L8: 2019-04-01 | M8: 2019-05-01 | N8: 2019-06-01 | O8: 2019-07-01 | P8: 2019-08-01 | Q8: 2019-09-01 | R8: 2019-10-01 | S8: 2019-11-01 | T8: 2019-12-01 | U8: 2020-01-01 | V8: 2020-02-01 | W8: 2020-03-01 | X8: 2020-04-01 | Y8: 2020-05-01 | Z8: 2020-06-01 | AA8: 2021-06-01 | AB8: 2022-06-01 | AC8: 2023-06-01 | AD8: 2024-06-01 | AE8: 2025-06-01 | AF8: 2026-06-01 | AG8: 2027-06-01 | AH8: 2028-06-01 | AI8: 2029-06-01 | AJ8: 2030-06-01 | AK8: 2031-06-01 | AL8: 2032-06-01 | AM8: 2033-06-01 | AN8: 2034-06-01 | AO8: 2035-06-01 | AP8: 2036-06-01 | AQ8: 2037-06-01 | AR8: 2038-06-01 | AS8: 2039-06-01 | AT8: 2040-06-01 | AU8: 2041-06-01 | AV8: 2042-06-01 | AW8: 2043-06-01 | AX8: 2044-06-01 | AY8: 2045-06-01 | AZ8: 2046-06-01 | BA8: 2047-06-01 | BB8: 2048-06-01 | BC8: 2049-06-01 | BD8: 2050-06-01 | BE8: 2051-06-01 | BF8: 2052-06-01 | BG8: 2053-06-01 | BH8: 2054-06-01 | BI8: 2055-06-01 | BJ8: 2056-06-01 | BK8: 2057-06-01 | BL8: 2058-06-01 | BM8: 2059-06-01 | BN8: 2060-06-01 | BO8: 2061-06-01 | BP8: 2062-06-01
B9: Operation | F9: =F22 -> 2050-07-01 | G9: =COUNTIF(I9:BP9,TRUE) -> 30 | I9: =AND(NOT(I6),I8<$F$9) -> FALSE | J9: =AND(NOT(J6),J8<$F$9) -> FALSE | K9: FALSE | L9: FALSE | M9: FALSE | N9: FALSE | O9: FALSE | P9: FALSE | Q9: FALSE | R9: FALSE | S9: FALSE | T9: FALSE | U9: FALSE | V9: FALSE | W9: FALSE | X9: FALSE | Y9: FALSE | Z9: FALSE | AA9: TRUE | AB9: TRUE | AC9: TRUE | AD9: TRUE | AE9: TRUE | AF9: TRUE | AG9: TRUE | AH9: TRUE | AI9: TRUE | AJ9: TRUE | AK9: TRUE | AL9: TRUE | AM9: TRUE | AN9: TRUE | AO9: TRUE | AP9: TRUE | AQ9: TRUE | AR9: TRUE | AS9: TRUE | AT9: TRUE | AU9: TRUE | AV9: TRUE | AW9: TRUE | AX9: TRUE | AY9: TRUE | AZ9: TRUE | BA9: TRUE | BB9: TRUE | BC9: TRUE | BD9: TRUE | BE9: FALSE | BF9: FALSE | BG9: FALSE | BH9: FALSE | BI9: FALSE | BJ9: FALSE | BK9: FALSE | BL9: FALSE | BM9: FALSE | BN9: FALSE | BO9: FALSE | BP9: FALSE
B10: Project Age | I10: =H10+I9 -> 0 | J10: =I10+J9 -> 0 | K10: 0 | L10: 0 | M10: 0 | N10: 0 | O10: 0 | P10: 0 | Q10: 0 | R10: 0 | S10: 0 | T10: 0 | U10: 0 | V10: 0 | W10: 0 | X10: 0 | Y10: 0 | Z10: 0 | AA10: 1 | AB10: 2 | AC10: 3 | AD10: 4 | AE10: 5 | AF10: 6 | AG10: 7 | AH10: 8 | AI10: 9 | AJ10: 10 | AK10: 11 | AL10: 12 | AM10: 13 | AN10: 14 | AO10: 15 | AP10: 16 | AQ10: 17 | AR10: 18 | AS10: 19 | AT10: 20 | AU10: 21 | AV10: 22 | AW10: 23 | AX10: 24 | AY10: 25 | AZ10: 26 | BA10: 27 | BB10: 28 | BC10: 29 | BD10: 30 | BE10: 30 | BF10: 30 | BG10: 30 | BH10: 30 | BI10: 30 | BJ10: 30 | BK10: 30 | BL10: 30 | BM10: 30 | BN10: 30 | BO10: 30 | BP10: 30
A12: Assumptions
B14: Timing
C15: Months/Period - Construction | E15: Months | F15: 1
C16: Months/Period - Operation | E16: Months | F16: 12
C18: Financial Close Date | E18: Date | F18: 2019-01-01
C19: Construction Period | E19: Months | F19: 18
C20: Commercial Operation | E20: Date | F20: =EDATE(F18,F19) -> 2020-07-01
C21: Operation Period | E21: Years | F21: 30
C22: Decommissioning | E22: Date | F22: =EDATE(F20,F21*12) -> 2050-07-01
B24: Operating assumptions
C25: Capacity
D26: Farm 1 | E26: MW | F26: ='Wind Study'!D31 -> 77.4
D27: Farm 2 | E27: MW | F27: ='Wind Study'!D3 -> 28.8
D28: Total | E28: MW | F28: =SUM(F26:F27) -> 106.2
C29: P99 | G29: Std Dev
D30: Farm 1 | E30: GWH | F30: ='Wind Study'!D48 -> 197.1562584 | G30: ='Wind Study'!D43 -> 51
D31: Farm 2 | E31: GWH | F31: ='Wind Study'!D20 -> 78.30777294 | G31: ='Wind Study'!D15 -> 20.2
D32: Total | E32: GWH | F32: =SUM(F30:F31) -> 275.4640314
C33: P50
D34: Farm 1 | E34: GWH | F34: ='Wind Study'!D39 -> 315.8
D35: Farm 2 | E35: GWH | F35: ='Wind Study'!D11 -> 125.3
D36: Total | E36: GWH | F36: =SUM(F34:F35) -> 441.1
C37: P90
D38: Farm 1 | E38: GWH | F38: ='Wind Study'!D54 -> 269.2796782
D39: Farm 2 | E39: GWH | F39: ='Wind Study'!D23 -> 125.3
D40: Total | E40: GWH | F40: =SUM(F38:F39) -> 394.5796782
B42: EPC Assumption
C43: EPC Costs | E43: USD Millions | F43: 218.8
C44: Total Capacity | E44: MW | F44: =F28 -> 106.2
C45: Cost per KW | E45: USD/kW | F45: =F43/F44*1000 -> 2060.263653
C47: S-Curve
D48: Month | H48: 0 | I48: 1 | J48: 19
D49: Percent | H49: 0 | I49: 0.05555555556 | J49: 0
B51: O&M Assumptions | G51: =F18 -> 2019-01-01 | H51: =F20 -> 2020-07-01 | I51: =EDATE(H51,5*12) -> 2025-07-01 | J51: =EDATE(I51,5*12) -> 2030-07-01 | K51: =EDATE(J51,5*12) -> 2035-07-01
C52: Cost per kW | E52: USD/KWy | H52: 30 | I52: 32 | J52: 40 | K52: 45
C54: O&M Inflation | E54: % p.a. | G54: 0.015 | H54: 0.02 | I54: 0.022 | J54: 0.024
B56: PPA Assumptions
C57: Base PPA Price | E57: USD/MWH | F57: 44
C58: Annual Escalation | E58: % | F58: 0.02
B60: Tax and depreciation
C61: Depreciation life | F61: 12
C62: Tax rate | F62: 0.2
A64: Financing Assumptions
B65: General Debt Parameters
C66: Debt Sizing
D67: Maximum Debt capital | E67: % | F67: 0.8
D68: Minimum DSCR P50 case | F68: 1.5
D69: Minimum DSCR P99 case | F69: 1
C71: Debt funding
D72: Up-fron Equity Percent | E72: % | F72: 0.2
C74: Credit protection
D75: Debt Service Account | E75: Percent | F75: 0.5
D76: Cash Trap Covenent | E76: DSCR | F76: 1.2
D77: Cash Sweep | E77: % of Cash | F77: 0
B79: Debt Issue 1 (Capturing Debt Issue)
C80: Percent of Senior | E80: Percent | F80: =1-F99-F120-F141 -> 0.55
C82: Repayment
D83: Tenor | E83: years | F83: 20
D84: Sculpting repayment | F84: TRUE
D85: Level repayment | F85: =NOT(F84) -> FALSE
D86: Debt Repayment Date | F86: =EDATE($F$20,F83*12) -> 2040-07-01
D88: Sculpt | F88: TRUE
C90: Interest rate and fees
D91: Up-front fee | E91: % | F91: 0.015
D92: Commitment fee | E92: % | F92: 0.008
D94: Base interest rate | E94: % | F94: 0.025
F95: 0 | G95: 1 | H95: 4 | I95: 7 | J95: 10 | K95: 13
D96: Credit spread | E96: 2 | F96: =INDEX('Scenario sheet'!B5:B7,'Financial Model'!$E$96) -> 0.0425 | G96: =INDEX('Scenario sheet'!C5:C7,'Financial Model'!$E$96) -> 0.03 | H96: =INDEX('Scenario sheet'!D5:D7,'Financial Model'!$E$96) -> 0.03 | I96: =INDEX('Scenario sheet'!E5:E7,'Financial Model'!$E$96) -> 0.03 | J96: =INDEX('Scenario sheet'!F5:F7,'Financial Model'!$E$96) -> 0.03 | K96: =INDEX('Scenario sheet'!G5:G7,'Financial Model'!$E$96) -> 0.03
B98: Debt Issue 2 (Non Capturing Issue)
C99: Percent of Senior | E99: Percent | F99: 0.1
C101: Repayment
D102: Tenor | E102: years | F102: 14
D103: Sculpting repayment | F103: TRUE
D104: Input Repayment | F104: =NOT(F103) -> FALSE
D105: Debt Repayment Date | F105: =EDATE($F$20,F102*12) -> 2034-07-01
D107: Sculpting | F107: TRUE
D108: Input Repayment Period | F108: 0 | G108: 1 | H108: 14 | I108: 15 | J108: 20 | K108: 30
D109: Input Repayment | F109: 0 | G109: =1/$F$102 -> 0.07142857143 | H109: =1/$F$102 -> 0.07142857143 | I109: 0 | J109: 0 | K109: 0
C111: Interest rate and fees
D112: Up-front fee | E112: % | F112: 0.013
D113: Commitment fee | E113: % | F113: 0.007
D115: Base interest rate | E115: % | F115: 0.03
F116: 0 | G116: 1 | H116: 4 | I116: 7 | J116: 10 | K116: 13
D117: Credit spread | E117: 3 | F117: =INDEX('Scenario sheet'!B$5:B$7,'Financial Model'!$E$117) -> 0.0425 | G117: =INDEX('Scenario sheet'!C$5:C$7,'Financial Model'!$E$117) -> 0.02 | H117: =INDEX('Scenario sheet'!D$5:D$7,'Financial Model'!$E$117) -> 0.02 | I117: =INDEX('Scenario sheet'!E$5:E$7,'Financial Model'!$E$117) -> 0.02 | J117: =INDEX('Scenario sheet'!F$5:F$7,'Financial Model'!$E$117) -> 0.02 | K117: =INDEX('Scenario sheet'!G$5:G$7,'Financial Model'!$E$117) -> 0.02
B119: Debt Issue 3
C120: Percent of Senior | E120: Percent | F120: 0.15
C122: Repayment
D123: Tenor | E123: years | F123: 15
D124: Sculpting repayment | F124: TRUE
D125: Level repayment | F125: =NOT(F124) -> FALSE
D126: Debt Repayment Date | F126: =EDATE($F$20,F123*12) -> 2035-07-01
D128: Sculpting | F128: TRUE
D129: Input Repayment Period | F129: 0 | G129: 1 | H129: =F123 -> 15 | I129: 16 | J129: 20 | K129: 30
D130: Input Repayment | F130: 0 | G130: =1/$F$123 -> 0.06666666667 | H130: =1/$F$123 -> 0.06666666667 | I130: 0 | J130: 0 | K130: 0
C132: Interest rate and fees
D133: Up-front fee | E133: % | F133: 0.01
D134: Commitment fee | E134: % | F134: 0.01
D136: Base interest rate | E136: % | F136: 0.03
F137: 0 | G137: 1 | H137: 4 | I137: 7 | J137: 10 | K137: 13
D138: Credit spread | E138: 2 | F138: =INDEX('Scenario sheet'!B$5:B$7,$E$138) -> 0.0425 | G138: =INDEX('Scenario sheet'!C$5:C$7,$E$138) -> 0.03 | H138: =INDEX('Scenario sheet'!D$5:D$7,$E$138) -> 0.03 | I138: =INDEX('Scenario sheet'!E$5:E$7,$E$138) -> 0.03 | J138: =INDEX('Scenario sheet'!F$5:F$7,$E$138) -> 0.03 | K138: =INDEX('Scenario sheet'!G$5:G$7,$E$138) -> 0.03
B140: Debt Issue 4
C141: Percent of Senior | E141: Percent | F141: 0.2
C143: Repayment
D144: Tenor | E144: years | F144: 17
D145: Sculpting repayment | F145: TRUE
D146: Level repayment | F146: =NOT(F145) -> FALSE
D147: Debt Repayment Date | F147: =EDATE($F$20,F144*12) -> 2037-07-01
D149: Sculpting | F149: TRUE
D150: Input Repayment Period | F150: 0 | G150: 1 | H150: 17 | I150: 16 | J150: 20 | K150: 30
D151: Input Repayment | F151: 0 | G151: =1/$F$144 -> 0.05882352941 | H151: =1/$F$144 -> 0.05882352941 | I151: 0 | J151: 0 | K151: 0
C153: Interest rate and fees
D154: Up-front fee | E154: % | F154: 0.012
D155: Commitment fee | E155: % | F155: 0.011
D157: Base interest rate | E157: % | F157: 0.015
F158: 0 | G158: 1 | H158: 4 | I158: 7 | J158: 10 | K158: 13
D159: Credit spread | E159: 1 | F159: =INDEX('Scenario sheet'!B5:B7,'Financial Model'!$E$159) -> 0.0425 | G159: =INDEX('Scenario sheet'!C5:C7,'Financial Model'!$E$159) -> 0.0437 | H159: =INDEX('Scenario sheet'!D5:D7,'Financial Model'!$E$159) -> 0.045 | I159: =INDEX('Scenario sheet'!E5:E7,'Financial Model'!$E$159) -> 0.0475 | J159: =INDEX('Scenario sheet'!F5:F7,'Financial Model'!$E$159) -> 0.05 | K159: =INDEX('Scenario sheet'!G5:G7,'Financial Model'!$E$159) -> 0.055
C161: Check of Total Debt Percent | F161: =F141+F120+F99+F80 -> 1
A163: Re-Financing Assumptions
B165: Re-Financing 1
C166: DSCR for Re-financing
A185: Operating & Analysis
B186: Capacity | E186: MW | F186: =F28 -> 106.2 | I186: =$F$186*I9 -> 0 | J186: 0 | K186: 0 | L186: 0 | M186: 0 | N186: 0 | O186: 0 | P186: 0 | Q186: 0 | R186: 0 | S186: 0 | T186: 0 | U186: 0 | V186: 0 | W186: 0 | X186: 0 | Y186: 0 | Z186: 0 | AA186: 106.2 | AB186: 106.2 | AC186: 106.2 | AD186: 106.2 | AE186: 106.2 | AF186: 106.2 | AG186: 106.2 | AH186: 106.2 | AI186: 106.2 | AJ186: 106.2 | AK186: 106.2 | AL186: 106.2 | AM186: 106.2 | AN186: 106.2 | AO186: =$F$186*AO9 -> 106.2 | AP186: 106.2 | AQ186: 106.2 | AR186: 106.2 | AS186: 106.2 | AT186: 106.2 | AU186: 106.2 | AV186: 106.2 | AW186: 106.2 | AX186: 106.2 | AY186: 106.2 | AZ186: 106.2 | BA186: 106.2 | BB186: 106.2 | BC186: 106.2 | BD186: 106.2 | BE186: 0 | BF186: 0 | BG186: 0 | BH186: 0 | BI186: 0 | BJ186: 0 | BK186: 0 | BL186: 0 | BM186: 0 | BN186: 0 | BO186: 0 | BP186: 0
B187: P50 Production | E187: GWH | F187: =F36 -> 441.1 | I187: =$F$187*I9 -> 0 | J187: 0 | K187: 0 | L187: 0 | M187: 0 | N187: 0 | O187: 0 | P187: 0 | Q187: 0 | R187: 0 | S187: 0 | T187: 0 | U187: 0 | V187: 0 | W187: 0 | X187: 0 | Y187: 0 | Z187: 0 | AA187: 441.1 | AB187: 441.1 | AC187: 441.1 | AD187: 441.1 | AE187: 441.1 | AF187: 441.1 | AG187: 441.1 | AH187: 441.1 | AI187: 441.1 | AJ187: 441.1 | AK187: 441.1 | AL187: 441.1 | AM187: 441.1 | AN187: 441.1 | AO187: =$F$187*AO9 -> 441.1 | AP187: 441.1 | AQ187: 441.1 | AR187: 441.1 | AS187: 441.1 | AT187: 441.1 | AU187: 441.1 | AV187: 441.1 | AW187: 441.1 | AX187: 441.1 | AY187: 441.1 | AZ187: 441.1 | BA187: 441.1 | BB187: 441.1 | BC187: 441.1 | BD187: 441.1 | BE187: 0 | BF187: 0 | BG187: 0 | BH187: 0 | BI187: 0 | BJ187: 0 | BK187: 0 | BL187: 0 | BM187: 0 | BN187: 0 | BO187: 0 | BP187: 0
B188: P99 Production | E188: GWH | F188: =F32 -> 275.4640314 | I188: =$F$188*I9 -> 0 | J188: 0 | K188: 0 | L188: 0 | M188: 0 | N188: 0 | O188: 0 | P188: 0 | Q188: 0 | R188: 0 | S188: 0 | T188: 0 | U188: 0 | V188: 0 | W188: 0 | X188: 0 | Y188: 0 | Z188: 0 | AA188: 275.4640314 | AB188: 275.4640314 | AC188: 275.4640314 | AD188: 275.4640314 | AE188: 275.4640314 | AF188: 275.4640314 | AG188: 275.4640314 | AH188: 275.4640314 | AI188: 275.4640314 | AJ188: 275.4640314 | AK188: 275.4640314 | AL188: 275.4640314 | AM188: 275.4640314 | AN188: 275.4640314 | AO188: =$F$188*AO9 -> 275.4640314 | AP188: 275.4640314 | AQ188: 275.4640314 | AR188: 275.4640314 | AS188: 275.4640314 | AT188: 275.4640314 | AU188: 275.4640314 | AV188: 275.4640314 | AW188: 275.4640314 | AX188: 275.4640314 | AY188: 275.4640314 | AZ188: 275.4640314 | BA188: 275.4640314 | BB188: 275.4640314 | BC188: 275.4640314 | BD188: 275.4640314 | BE188: 0 | BF188: 0 | BG188: 0 | BH188: 0 | BI188: 0 | BJ188: 0 | BK188: 0 | BL188: 0 | BM188: 0 | BN188: 0 | BO188: 0 | BP188: 0
B189: P90 Production | E189: GWH
C190: =INDEX('Scenario sheet'!$A$15:$A$17,'Financial Model'!F190) -> P50 Base Case | F190: ='Scenario sheet'!$G$16 -> 1 | I190: =INDEX(I187:I189,$F$190) -> 0 | J190: =INDEX(J187:J189,$F$190) -> 0 | K190: 0 | L190: 0 | M190: 0 | N190: 0 | O190: 0 | P190: 0 | Q190: 0 | R190: 0 | S190: 0 | T190: 0 | U190: 0 | V190: 0 | W190: 0 | X190: 0 | Y190: 0 | Z190: 0 | AA190: 441.1 | AB190: 441.1 | AC190: 441.1 | AD190: 441.1 | AE190: 441.1 | AF190: 441.1 | AG190: 441.1 | AH190: 441.1 | AI190: 441.1 | AJ190: 441.1 | AK190: 441.1 | AL190: 441.1 | AM190: 441.1 | AN190: 441.1 | AO190: 441.1 | AP190: 441.1 | AQ190: 441.1 | AR190: 441.1 | AS190: 441.1 | AT190: 441.1 | AU190: 441.1 | AV190: 441.1 | AW190: 441.1 | AX190: 441.1 | AY190: 441.1 | AZ190: 441.1 | BA190: 441.1 | BB190: 441.1 | BC190: 441.1 | BD190: 441.1 | BE190: 0 | BF190: 0 | BG190: 0 | BH190: 0 | BI190: 0 | BJ190: 0 | BK190: 0 | BL190: 0 | BM190: 0 | BN190: 0 | BO190: 0 | BP190: 0
B192: EPC/O&M/PPA
C193: EPC | E193: USD 000 | F193: =F43*1000 -> 218800 | I193: =$F$193*I6 -> 218800 | J193: 218800 | K193: 218800 | L193: 218800 | M193: 218800 | N193: 218800 | O193: 218800 | P193: 218800 | Q193: 218800 | R193: 218800 | S193: 218800 | T193: 218800 | U193: 218800 | V193: 218800 | W193: 218800 | X193: 218800 | Y193: 218800 | Z193: 218800 | AA193: 0 | AB193: 0 | AC193: 0 | AD193: 0 | AE193: 0 | AF193: 0 | AG193: 0 | AH193: 0 | AI193: 0 | AJ193: 0 | AK193: 0 | AL193: 0 | AM193: 0 | AN193: 0 | AO193: =$F$193*AO6 -> 0 | AP193: 0 | AQ193: 0 | AR193: 0 | AS193: 0 | AT193: 0 | AU193: 0 | AV193: 0 | AW193: 0 | AX193: 0 | AY193: 0 | AZ193: 0 | BA193: 0 | BB193: 0 | BC193: 0 | BD193: 0 | BE193: 0 | BF193: 0 | BG193: 0 | BH193: 0 | BI193: 0 | BJ193: 0 | BK193: 0 | BL193: 0 | BM193: 0 | BN193: 0 | BO193: 0 | BP193: 0
C194: S-Curve | I194: =LOOKUP(I5,48:48,49:49) -> 0.05555555556 | J194: 0.05555555556 | K194: 0.05555555556 | L194: 0.05555555556 | M194: 0.05555555556 | N194: 0.05555555556 | O194: 0.05555555556 | P194: 0.05555555556 | Q194: 0.05555555556 | R194: 0.05555555556 | S194: 0.05555555556 | T194: 0.05555555556 | U194: 0.05555555556 | V194: 0.05555555556 | W194: 0.05555555556 | X194: 0.05555555556 | Y194: 0.05555555556 | Z194: 0.05555555556 | AA194: 0 | AB194: 0 | AC194: 0 | AD194: 0 | AE194: 0 | AF194: 0 | AG194: 0 | AH194: 0 | AI194: 0 | AJ194: 0 | AK194: 0 | AL194: 0 | AM194: 0 | AN194: 0 | AO194: =LOOKUP(AO5,48:48,49:49) -> 0 | AP194: 0 | AQ194: 0 | AR194: 0 | AS194: 0 | AT194: 0 | AU194: 0 | AV194: 0 | AW194: 0 | AX194: 0 | AY194: 0 | AZ194: 0 | BA194: 0 | BB194: 0 | BC194: 0 | BD194: 0 | BE194: 0 | BF194: 0 | BG194: 0 | BH194: 0 | BI194: 0 | BJ194: 0 | BK194: 0 | BL194: 0 | BM194: 0 | BN194: 0 | BO194: 0 | BP194: 0
D195: Capital Expenditures | E195: USD 000 | I195: =I193*I194 -> 12155.55556 | J195: =J193*J194 -> 12155.55556 | K195: 12155.55556 | L195: 12155.55556 | M195: 12155.55556 | N195: 12155.55556 | O195: 12155.55556 | P195: 12155.55556 | Q195: 12155.55556 | R195: 12155.55556 | S195: 12155.55556 | T195: 12155.55556 | U195: 12155.55556 | V195: 12155.55556 | W195: 12155.55556 | X195: 12155.55556 | Y195: 12155.55556 | Z195: 12155.55556 | AA195: 0 | AB195: 0 | AC195: 0 | AD195: 0 | AE195: 0 | AF195: 0 | AG195: 0 | AH195: 0 | AI195: 0 | AJ195: 0 | AK195: 0 | AL195: 0 | AM195: 0 | AN195: 0 | AO195: 0 | AP195: 0 | AQ195: 0 | AR195: 0 | AS195: 0 | AT195: 0 | AU195: 0 | AV195: 0 | AW195: 0 | AX195: 0 | AY195: 0 | AZ195: 0 | BA195: 0 | BB195: 0 | BC195: 0 | BD195: 0 | BE195: 0 | BF195: 0 | BG195: 0 | BH195: 0 | BI195: 0 | BJ195: 0 | BK195: 0 | BL195: 0 | BM195: 0 | BN195: 0 | BO195: 0 | BP195: 0
B197: Revenues
C198: PPA Price without Inflation | E198: USD/MWh | F198: =F57 -> 44 | I198: =$F$198 -> 44 | J198: =$F$198 -> 44 | K198: 44 | L198: 44 | M198: 44 | N198: 44 | O198: 44 | P198: 44 | Q198: 44 | R198: 44 | S198: 44 | T198: 44 | U198: 44 | V198: 44 | W198: 44 | X198: 44 | Y198: 44 | Z198: 44 | AA198: 44 | AB198: 44 | AC198: 44 | AD198: 44 | AE198: 44 | AF198: 44 | AG198: 44 | AH198: 44 | AI198: 44 | AJ198: 44 | AK198: 44 | AL198: 44 | AM198: 44 | AN198: 44 | AO198: 44 | AP198: 44 | AQ198: 44 | AR198: 44 | AS198: 44 | AT198: 44 | AU198: 44 | AV198: 44 | AW198: 44 | AX198: 44 | AY198: 44 | AZ198: 44 | BA198: 44 | BB198: 44 | BC198: 44 | BD198: 44 | BE198: 44 | BF198: 44 | BG198: 44 | BH198: 44 | BI198: 44 | BJ198: 44 | BK198: 44 | BL198: 44 | BM198: 44 | BN198: 44 | BO198: 44 | BP198: 44
C199: PPA Inflation Index | E199: Index | F199: =F58 -> 0.02 | H199: 1 | I199: =H199*(1+$F$199*I9) -> 1 | J199: 1 | K199: 1 | L199: 1 | M199: 1 | N199: 1 | O199: 1 | P199: 1 | Q199: 1 | R199: 1 | S199: 1 | T199: 1 | U199: 1 | V199: 1 | W199: 1 | X199: 1 | Y199: 1 | Z199: 1 | AA199: 1.02 | AB199: 1.0404 | AC199: 1.061208 | AD199: 1.08243216 | AE199: 1.104080803 | AF199: 1.126162419 | AG199: 1.148685668 | AH199: 1.171659381 | AI199: 1.195092569 | AJ199: 1.21899442 | AK199: 1.243374308 | AL199: 1.268241795 | AM199: 1.29360663 | AN199: 1.319478763 | AO199: =AN199*(1+$F$199*AO9) -> 1.345868338 | AP199: 1.372785705 | AQ199: 1.400241419 | AR199: 1.428246248 | AS199: 1.456811173 | AT199: 1.485947396 | AU199: 1.515666344 | AV199: 1.545979671 | AW199: 1.576899264 | AX199: 1.608437249 | AY199: 1.640605994 | AZ199: 1.673418114 | BA199: 1.706886477 | BB199: 1.741024206 | BC199: 1.77584469 | BD199: 1.811361584 | BE199: 1.811361584 | BF199: 1.811361584 | BG199: 1.811361584 | BH199: 1.811361584 | BI199: 1.811361584 | BJ199: 1.811361584 | BK199: 1.811361584 | BL199: 1.811361584 | BM199: 1.811361584 | BN199: 1.811361584 | BO199: 1.811361584 | BP199: 1.811361584
C200: PPA Price with Inflation | E200: USD/MWh | I200: =I198*I199 -> 44 | J200: =J198*J199 -> 44 | K200: 44 | L200: 44 | M200: 44 | N200: 44 | O200: 44 | P200: 44 | Q200: 44 | R200: 44 | S200: 44 | T200: 44 | U200: 44 | V200: 44 | W200: 44 | X200: 44 | Y200: 44 | Z200: 44 | AA200: 44.88 | AB200: 45.7776 | AC200: 46.693152 | AD200: 47.62701504 | AE200: 48.57955534 | AF200: 49.55114645 | AG200: 50.54216938 | AH200: 51.55301276 | AI200: 52.58407302 | AJ200: 53.63575448 | AK200: 54.70846957 | AL200: 55.80263896 | AM200: 56.91869174 | AN200: 58.05706557 | AO200: 59.21820689 | AP200: 60.40257102 | AQ200: 61.61062244 | AR200: 62.84283489 | AS200: 64.09969159 | AT200: 65.38168542 | AU200: 66.68931913 | AV200: 68.02310551 | AW200: 69.38356762 | AX200: 70.77123898 | AY200: 72.18666376 | AZ200: 73.63039703 | BA200: 75.10300497 | BB200: 76.60506507 | BC200: 78.13716637 | BD200: 79.6999097 | BE200: 79.6999097 | BF200: 79.6999097 | BG200: 79.6999097 | BH200: 79.6999097 | BI200: 79.6999097 | BJ200: 79.6999097 | BK200: 79.6999097 | BL200: 79.6999097 | BM200: 79.6999097 | BN200: 79.6999097 | BO200: 79.6999097 | BP200: 79.6999097
C202: ="Revenues at "&INDEX('Scenario sheet'!$A$15:$A$17,'Financial Model'!F202) -> Revenues at P50 Base Case | E202: USD 000s | F202: ='Scenario sheet'!$G$16 -> 1 | I202: =I200*I190 -> 0 | J202: =J200*J190 -> 0 | K202: 0 | L202: 0 | M202: 0 | N202: 0 | O202: 0 | P202: 0 | Q202: 0 | R202: 0 | S202: 0 | T202: 0 | U202: 0 | V202: 0 | W202: 0 | X202: 0 | Y202: 0 | Z202: 0 | AA202: 19796.568 | AB202: 20192.49936 | AC202: 20596.34935 | AD202: 21008.27633 | AE202: 21428.44186 | AF202: 21857.0107 | AG202: 22294.15091 | AH202: 22740.03393 | AI202: 23194.83461 | AJ202: 23658.7313 | AK202: 24131.90593 | AL202: 24614.54405 | AM202: 25106.83493 | AN202: 25608.97163 | AO202: 26121.15106 | AP202: 26643.57408 | AQ202: 27176.44556 | AR202: 27719.97447 | AS202: 28274.37396 | AT202: 28839.86144 | AU202: 29416.65867 | AV202: 30004.99184 | AW202: 30605.09168 | AX202: 31217.19351 | AY202: 31841.53738 | AZ202: 32478.36813 | BA202: 33127.93549 | BB202: 33790.4942 | BC202: 34466.30409 | BD202: 35155.63017 | BE202: 0 | BF202: 0 | BG202: 0 | BH202: 0 | BI202: 0 | BJ202: 0 | BK202: 0 | BL202: 0 | BM202: 0 | BN202: 0 | BO202: 0 | BP202: 0
B204: O&M Costs
C205: O&M per kW | E205: USD/kW-yr | I205: =LOOKUP(I8,51:51,52:52) -> 0 | J205: 0 | K205: 0 | L205: 0 | M205: 0 | N205: 0 | O205: 0 | P205: 0 | Q205: 0 | R205: 0 | S205: 0 | T205: 0 | U205: 0 | V205: 0 | W205: 0 | X205: 0 | Y205: 0 | Z205: 0 | AA205: 30 | AB205: 30 | AC205: 30 | AD205: 30 | AE205: 30 | AF205: 32 | AG205: 32 | AH205: 32 | AI205: 32 | AJ205: 32 | AK205: 40 | AL205: 40 | AM205: 40 | AN205: 40 | AO205: =LOOKUP(AO8,51:51,52:52) -> 40 | AP205: 45 | AQ205: 45 | AR205: 45 | AS205: 45 | AT205: 45 | AU205: 45 | AV205: 45 | AW205: 45 | AX205: 45 | AY205: 45 | AZ205: 45 | BA205: 45 | BB205: 45 | BC205: 45 | BD205: 45 | BE205: 45 | BF205: 45 | BG205: 45 | BH205: 45 | BI205: 45 | BJ205: 45 | BK205: 45 | BL205: 45 | BM205: 45 | BN205: 45 | BO205: 45 | BP205: 45
C206: Inflation Rate | E206: % | I206: =(1+LOOKUP(I8,51:51,54:54))^(I7/12)-1 -> 0.001241487716 | J206: 0.001241487716 | K206: 0.001241487716 | L206: 0.001241487716 | M206: 0.001241487716 | N206: 0.001241487716 | O206: 0.001241487716 | P206: 0.001241487716 | Q206: 0.001241487716 | R206: 0.001241487716 | S206: 0.001241487716 | T206: 0.001241487716 | U206: 0.001241487716 | V206: 0.001241487716 | W206: 0.001241487716 | X206: 0.001241487716 | Y206: 0.001241487716 | Z206: 0.001241487716 | AA206: 0.02 | AB206: 0.02 | AC206: 0.02 | AD206: 0.02 | AE206: 0.02 | AF206: 0.022 | AG206: 0.022 | AH206: 0.022 | AI206: 0.022 | AJ206: 0.022 | AK206: 0.024 | AL206: 0.024 | AM206: 0.024 | AN206: 0.024 | AO206: =(1+LOOKUP(AO8,51:51,54:54))^(AO7/12)-1 -> 0.024 | AP206: 0 | AQ206: 0 | AR206: 0 | AS206: 0 | AT206: 0 | AU206: 0 | AV206: 0 | AW206: 0 | AX206: 0 | AY206: 0 | AZ206: 0 | BA206: 0 | BB206: 0 | BC206: 0 | BD206: 0 | BE206: 0 | BF206: 0 | BG206: 0 | BH206: 0 | BI206: 0 | BJ206: 0 | BK206: 0 | BL206: 0 | BM206: 0 | BN206: 0 | BO206: 0 | BP206: 0
C207: Inflation Index | E207: Index | H207: 1 | I207: =H207*(1+I206) -> 1.001241488 | J207: =I207*(1+J206) -> 1.002484517 | K207: 1.003729089 | L207: 1.004975206 | M207: 1.006222871 | N207: 1.007472084 | O207: 1.008722848 | P207: 1.009975165 | Q207: 1.011229037 | R207: 1.012484465 | S207: 1.013741452 | T207: 1.015 | U207: 1.01626011 | V207: 1.017521784 | W207: 1.018785025 | X207: 1.020049834 | Y207: 1.021316214 | Z207: 1.022584165 | AA207: 1.043035849 | AB207: 1.063896566 | AC207: 1.085174497 | AD207: 1.106877987 | AE207: 1.129015546 | AF207: 1.153853889 | AG207: 1.179238674 | AH207: 1.205181925 | AI207: 1.231695927 | AJ207: 1.258793238 | AK207: 1.289004275 | AL207: 1.319940378 | AM207: 1.351618947 | AN207: 1.384057802 | AO207: 1.417275189 | AP207: 1.417275189 | AQ207: 1.417275189 | AR207: 1.417275189 | AS207: 1.417275189 | AT207: 1.417275189 | AU207: 1.417275189 | AV207: 1.417275189 | AW207: 1.417275189 | AX207: 1.417275189 | AY207: 1.417275189 | AZ207: 1.417275189 | BA207: 1.417275189 | BB207: 1.417275189 | BC207: 1.417275189 | BD207: 1.417275189 | BE207: 1.417275189 | BF207: 1.417275189 | BG207: 1.417275189 | BH207: 1.417275189 | BI207: 1.417275189 | BJ207: 1.417275189 | BK207: 1.417275189 | BL207: 1.417275189 | BM207: 1.417275189 | BN207: 1.417275189 | BO207: 1.417275189 | BP207: 1.417275189
C208: O&M per kW Inflated | E208: USD/kW-yr | I208: =I207*I205 -> 0 | J208: =J207*J205 -> 0 | K208: 0 | L208: 0 | M208: 0 | N208: 0 | O208: 0 | P208: 0 | Q208: 0 | R208: 0 | S208: 0 | T208: 0 | U208: 0 | V208: 0 | W208: 0 | X208: 0 | Y208: 0 | Z208: 0 | AA208: 31.29107546 | AB208: 31.91689697 | AC208: 32.5552349 | AD208: 33.2063396 | AE208: 33.87046639 | AF208: 36.92332443 | AG208: 37.73563757 | AH208: 38.5658216 | AI208: 39.41426967 | AJ208: 40.2813836 | AK208: 51.56017101 | AL208: 52.79761512 | AM208: 54.06475788 | AN208: 55.36231207 | AO208: 56.69100756 | AP208: 63.7773835 | AQ208: 63.7773835 | AR208: 63.7773835 | AS208: 63.7773835 | AT208: 63.7773835 | AU208: 63.7773835 | AV208: 63.7773835 | AW208: 63.7773835 | AX208: 63.7773835 | AY208: 63.7773835 | AZ208: 63.7773835 | BA208: 63.7773835 | BB208: 63.7773835 | BC208: 63.7773835 | BD208: 63.7773835 | BE208: 63.7773835 | BF208: 63.7773835 | BG208: 63.7773835 | BH208: 63.7773835 | BI208: 63.7773835 | BJ208: 63.7773835 | BK208: 63.7773835 | BL208: 63.7773835 | BM208: 63.7773835 | BN208: 63.7773835 | BO208: 63.7773835 | BP208: 63.7773835
C210: Capacity | E210: MW | I210: =I186 -> 0 | J210: 0 | K210: 0 | L210: 0 | M210: 0 | N210: 0 | O210: 0 | P210: 0 | Q210: 0 | R210: 0 | S210: 0 | T210: 0 | U210: 0 | V210: 0 | W210: 0 | X210: 0 | Y210: 0 | Z210: 0 | AA210: 106.2 | AB210: 106.2 | AC210: 106.2 | AD210: 106.2 | AE210: 106.2 | AF210: 106.2 | AG210: 106.2 | AH210: 106.2 | AI210: 106.2 | AJ210: 106.2 | AK210: 106.2 | AL210: 106.2 | AM210: 106.2 | AN210: 106.2 | AO210: =AO186 -> 106.2 | AP210: 106.2 | AQ210: 106.2 | AR210: 106.2 | AS210: 106.2 | AT210: 106.2 | AU210: 106.2 | AV210: 106.2 | AW210: 106.2 | AX210: 106.2 | AY210: 106.2 | AZ210: 106.2 | BA210: 106.2 | BB210: 106.2 | BC210: 106.2 | BD210: 106.2 | BE210: 0 | BF210: 0 | BG210: 0 | BH210: 0 | BI210: 0 | BJ210: 0 | BK210: 0 | BL210: 0 | BM210: 0 | BN210: 0 | BO210: 0 | BP210: 0
D211: O&M Costs | I211: =I210*I208 -> 0 | J211: =J210*J208 -> 0 | K211: 0 | L211: 0 | M211: 0 | N211: 0 | O211: 0 | P211: 0 | Q211: 0 | R211: 0 | S211: 0 | T211: 0 | U211: 0 | V211: 0 | W211: 0 | X211: 0 | Y211: 0 | Z211: 0 | AA211: 3323.112213 | AB211: 3389.574458 | AC211: 3457.365947 | AD211: 3526.513266 | AE211: 3597.043531 | AF211: 3921.257055 | AG211: 4007.52471 | AH211: 4095.690254 | AI211: 4185.795439 | AJ211: 4277.882939 | AK211: 5475.690162 | AL211: 5607.106726 | AM211: 5741.677287 | AN211: 5879.477542 | AO211: 6020.585003 | AP211: 6773.158128 | AQ211: 6773.158128 | AR211: 6773.158128 | AS211: 6773.158128 | AT211: 6773.158128 | AU211: 6773.158128 | AV211: 6773.158128 | AW211: 6773.158128 | AX211: 6773.158128 | AY211: 6773.158128 | AZ211: 6773.158128 | BA211: 6773.158128 | BB211: 6773.158128 | BC211: 6773.158128 | BD211: 6773.158128 | BE211: 0 | BF211: 0 | BG211: 0 | BH211: 0 | BI211: 0 | BJ211: 0 | BK211: 0 | BL211: 0 | BM211: 0 | BN211: 0 | BO211: 0 | BP211: 0
C213: EBITDA | I213: =I202-I211 -> 0 | J213: 0 | K213: 0 | L213: 0 | M213: 0 | N213: 0 | O213: 0 | P213: 0 | Q213: 0 | R213: 0 | S213: 0 | T213: 0 | U213: 0 | V213: 0 | W213: 0 | X213: 0 | Y213: 0 | Z213: 0 | AA213: 16473.45579 | AB213: 16802.9249 | AC213: 17138.9834 | AD213: 17481.76307 | AE213: 17831.39833 | AF213: 17935.75364 | AG213: 18286.6262 | AH213: 18644.34368 | AI213: 19009.03917 | AJ213: 19380.84836 | AK213: 18656.21577 | AL213: 19007.43732 | AM213: 19365.15764 | AN213: 19729.49408 | AO213: =AO202-AO211 -> 20100.56605 | AP213: 19870.41595 | AQ213: 20403.28743 | AR213: 20946.81634 | AS213: 21501.21583 | AT213: 22066.70331 | AU213: 22643.50054 | AV213: 23231.83371 | AW213: 23831.93355 | AX213: 24444.03538 | AY213: 25068.37925 | AZ213: 25705.21 | BA213: 26354.77737 | BB213: 27017.33607 | BC213: 27693.14596 | BD213: 28382.47204 | BE213: 0 | BF213: 0 | BG213: 0 | BH213: 0 | BI213: 0 | BJ213: 0 | BK213: 0 | BL213: 0 | BM213: 0 | BN213: 0 | BO213: 0 | BP213: 0
C215: Net Project Cash Flow | H215: =H213-H195-0.0000001 -> -1e-07 | I215: =I213-I195 -> -12155.55556 | J215: -12155.55556 | K215: -12155.55556 | L215: -12155.55556 | M215: -12155.55556 | N215: -12155.55556 | O215: -12155.55556 | P215: -12155.55556 | Q215: -12155.55556 | R215: -12155.55556 | S215: -12155.55556 | T215: -12155.55556 | U215: -12155.55556 | V215: -12155.55556 | W215: -12155.55556 | X215: -12155.55556 | Y215: -12155.55556 | Z215: -12155.55556 | AA215: 16473.45579 | AB215: 16802.9249 | AC215: 17138.9834 | AD215: 17481.76307 | AE215: 17831.39833 | AF215: 17935.75364 | AG215: 18286.6262 | AH215: 18644.34368 | AI215: 19009.03917 | AJ215: 19380.84836 | AK215: 18656.21577 | AL215: 19007.43732 | AM215: 19365.15764 | AN215: 19729.49408 | AO215: =AO213-AO195 -> 20100.56605 | AP215: 19870.41595 | AQ215: 20403.28743 | AR215: 20946.81634 | AS215: 21501.21583 | AT215: 22066.70331 | AU215: 22643.50054 | AV215: 23231.83371 | AW215: 23831.93355 | AX215: 24444.03538 | AY215: 25068.37925 | AZ215: 25705.21 | BA215: 26354.77737 | BB215: 27017.33607 | BC215: 27693.14596 | BD215: 28382.47204 | BE215: 0 | BF215: 0 | BG215: 0 | BH215: 0 | BI215: 0 | BJ215: 0 | BK215: 0 | BL215: 0 | BM215: 0 | BN215: 0 | BO215: 0 | BP215: 0
C217: Project IRR | F217: =XIRR(I215:BP215,I8:BP8) -> 0.07423903048
A219: Operating Taxes
B220: Costs Base | H220: =$I$193 -> 218800 | I220: 218800 | J220: 218800 | K220: 218800 | L220: 218800 | M220: 218800 | N220: 218800 | O220: 218800 | P220: 218800 | Q220: 218800 | R220: 218800 | S220: 218800 | T220: 218800 | U220: 218800 | V220: 218800 | W220: 218800 | X220: 218800 | Y220: 218800 | Z220: 218800 | AA220: 218800 | AB220: 218800 | AC220: 218800 | AD220: 218800 | AE220: 218800 | AF220: 218800 | AG220: 218800 | AH220: 218800 | AI220: 218800 | AJ220: 218800 | AK220: 218800 | AL220: 218800 | AM220: 218800 | AN220: 218800 | AO220: 218800 | AP220: 218800 | AQ220: 218800 | AR220: 218800 | AS220: 218800 | AT220: 218800 | AU220: 218800 | AV220: 218800 | AW220: 218800 | AX220: 218800 | AY220: 218800 | AZ220: 218800 | BA220: 218800 | BB220: 218800 | BC220: 218800 | BD220: 218800 | BE220: 218800 | BF220: 218800 | BG220: 218800 | BH220: 218800 | BI220: 218800 | BJ220: 218800 | BK220: 218800 | BL220: 218800 | BM220: 218800 | BN220: 218800 | BO220: 218800 | BP220: 218800
C221: Depreciation Expense | F221: =1/$F$61 -> 0.08333333333 | I221: =MIN(I220*$F$221,H223)*I9 -> 0 | J221: 0 | K221: 0 | L221: 0 | M221: 0 | N221: 0 | O221: 0 | P221: 0 | Q221: 0 | R221: 0 | S221: 0 | T221: 0 | U221: 0 | V221: 0 | W221: 0 | X221: 0 | Y221: 0 | Z221: 0 | AA221: 18233.33333 | AB221: 18233.33333 | AC221: 18233.33333 | AD221: 18233.33333 | AE221: 18233.33333 | AF221: 18233.33333 | AG221: 18233.33333 | AH221: 18233.33333 | AI221: 18233.33333 | AJ221: 18233.33333 | AK221: 18233.33333 | AL221: 18233.33333 | AM221: 0 | AN221: 0 | AO221: =MIN(AO220*$F$221,AN223)*AO9 -> 0 | AP221: 0 | AQ221: 0 | AR221: 0 | AS221: 0 | AT221: 0 | AU221: 0 | AV221: 0 | AW221: 0 | AX221: 0 | AY221: 0 | AZ221: 0 | BA221: 0 | BB221: 0 | BC221: 0 | BD221: 0 | BE221: 0 | BF221: 0 | BG221: 0 | BH221: 0 | BI221: 0 | BJ221: 0 | BK221: 0 | BL221: 0 | BM221: 0 | BN221: 0 | BO221: 0 | BP221: 0
C222: Accumulated Depreciation | I222: =H222+I221 -> 0 | J222: =I222+J221 -> 0 | K222: 0 | L222: 0 | M222: 0 | N222: 0 | O222: 0 | P222: 0 | Q222: 0 | R222: 0 | S222: 0 | T222: 0 | U222: 0 | V222: 0 | W222: 0 | X222: 0 | Y222: 0 | Z222: 0 | AA222: 18233.33333 | AB222: 36466.66667 | AC222: 54700 | AD222: 72933.33333 | AE222: 91166.66667 | AF222: 109400 | AG222: 127633.3333 | AH222: 145866.6667 | AI222: 164100 | AJ222: 182333.3333 | AK222: 200566.6667 | AL222: 218800 | AM222: 218800 | AN222: =AM222+AN221 -> 218800 | AO222: 218800 | AP222: 218800 | AQ222: 218800 | AR222: 218800 | AS222: 218800 | AT222: 218800 | AU222: 218800 | AV222: 218800 | AW222: 218800 | AX222: 218800 | AY222: 218800 | AZ222: 218800 | BA222: 218800 | BB222: 218800 | BC222: 218800 | BD222: 218800 | BE222: 218800 | BF222: 218800 | BG222: 218800 | BH222: 218800 | BI222: 218800 | BJ222: 218800 | BK222: 218800 | BL222: 218800 | BM222: 218800 | BN222: 218800 | BO222: 218800 | BP222: 218800
C223: Net Plant | H223: =H220-H222 -> 218800 | I223: =I220-I222 -> 218800 | J223: 218800 | K223: 218800 | L223: 218800 | M223: 218800 | N223: 218800 | O223: 218800 | P223: 218800 | Q223: 218800 | R223: 218800 | S223: 218800 | T223: 218800 | U223: 218800 | V223: 218800 | W223: 218800 | X223: 218800 | Y223: 218800 | Z223: 218800 | AA223: 200566.6667 | AB223: 182333.3333 | AC223: 164100 | AD223: 145866.6667 | AE223: 127633.3333 | AF223: 109400 | AG223: 91166.66667 | AH223: 72933.33333 | AI223: 54700 | AJ223: 36466.66667 | AK223: 18233.33333 | AL223: 0 | AM223: 0 | AN223: 0 | AO223: 0 | AP223: 0 | AQ223: 0 | AR223: 0 | AS223: 0 | AT223: 0 | AU223: 0 | AV223: 0 | AW223: 0 | AX223: 0 | AY223: 0 | AZ223: 0 | BA223: 0 | BB223: 0 | BC223: 0 | BD223: 0 | BE223: 0 | BF223: 0 | BG223: 0 | BH223: 0 | BI223: 0 | BJ223: 0 | BK223: 0 | BL223: 0 | BM223: 0 | BN223: 0 | BO223: 0 | BP223: 0
C224: Depreciation Rate | I224: =I221/I220 -> 0 | J224: =J221/J220 -> 0 | K224: 0 | L224: 0 | M224: 0 | N224: 0 | O224: 0 | P224: 0 | Q224: 0 | R224: 0 | S224: 0 | T224: 0 | U224: 0 | V224: 0 | W224: 0 | X224: 0 | Y224: 0 | Z224: 0 | AA224: 0.08333333333 | AB224: 0.08333333333 | AC224: 0.08333333333 | AD224: 0.08333333333 | AE224: 0.08333333333 | AF224: 0.08333333333 | AG224: 0.08333333333 | AH224: 0.08333333333 | AI224: 0.08333333333 | AJ224: 0.08333333333 | AK224: 0.08333333333 | AL224: 0.08333333333 | AM224: 0 | AN224: 0 | AO224: 0 | AP224: 0 | AQ224: 0 | AR224: 0 | AS224: 0 | AT224: 0 | AU224: 0 | AV224: 0 | AW224: 0 | AX224: 0 | AY224: 0 | AZ224: 0 | BA224: 0 | BB224: 0 | BC224: 0 | BD224: 0 | BE224: 0 | BF224: 0 | BG224: 0 | BH224: 0 | BI224: 0 | BJ224: 0 | BK224: 0 | BL224: 0 | BM224: 0 | BN224: 0 | BO224: 0 | BP224: 0
B226: EBIT | I226: =I213-I221 -> 0 | J226: 0 | K226: 0 | L226: 0 | M226: 0 | N226: 0 | O226: 0 | P226: 0 | Q226: 0 | R226: 0 | S226: 0 | T226: 0 | U226: 0 | V226: 0 | W226: 0 | X226: 0 | Y226: 0 | Z226: 0 | AA226: -1759.877547 | AB226: -1430.408431 | AC226: -1094.349933 | AD226: -751.570265 | AE226: -401.9350036 | AF226: -297.57969 | AG226: 53.29286872 | AH226: 411.0103433 | AI226: 775.7058364 | AJ226: 1147.515029 | AK226: 422.882432 | AL226: 774.1039867 | AM226: 19365.15764 | AN226: 19729.49408 | AO226: =AO213-AO221 -> 20100.56605 | AP226: 19870.41595 | AQ226: 20403.28743 | AR226: 20946.81634 | AS226: 21501.21583 | AT226: 22066.70331 | AU226: 22643.50054 | AV226: 23231.83371 | AW226: 23831.93355 | AX226: 24444.03538 | AY226: 25068.37925 | AZ226: 25705.21 | BA226: 26354.77737 | BB226: 27017.33607 | BC226: 27693.14596 | BD226: 28382.47204 | BE226: 0 | BF226: 0 | BG226: 0 | BH226: 0 | BI226: 0 | BJ226: 0 | BK226: 0 | BL226: 0 | BM226: 0 | BN226: 0 | BO226: 0 | BP226: 0
B227: Taxes | F227: =$F$62 -> 0.2 | I227: =I226*$F$227 -> 0 | J227: =J226*$F$227 -> 0 | K227: 0 | L227: 0 | M227: 0 | N227: 0 | O227: 0 | P227: 0 | Q227: 0 | R227: 0 | S227: 0 | T227: 0 | U227: 0 | V227: 0 | W227: 0 | X227: 0 | Y227: 0 | Z227: 0 | AA227: -351.9755094 | AB227: -286.0816862 | AC227: -218.8699866 | AD227: -150.314053 | AE227: -80.38700073 | AF227: -59.51593801 | AG227: 10.65857374 | AH227: 82.20206867 | AI227: 155.1411673 | AJ227: 229.5030058 | AK227: 84.57648641 | AL227: 154.8207973 | AM227: 3873.031528 | AN227: 3945.898817 | AO227: 4020.113211 | AP227: 3974.08319 | AQ227: 4080.657486 | AR227: 4189.363269 | AS227: 4300.243167 | AT227: 4413.340662 | AU227: 4528.700108 | AV227: 4646.366743 | AW227: 4766.38671 | AX227: 4888.807077 | AY227: 5013.675851 | AZ227: 5141.042 | BA227: 5270.955473 | BB227: 5403.467215 | BC227: 5538.629192 | BD227: 5676.494408 | BE227: 0 | BF227: 0 | BG227: 0 | BH227: 0 | BI227: 0 | BJ227: 0 | BK227: 0 | BL227: 0 | BM227: 0 | BN227: 0 | BO227: 0 | BP227: 0
B229: After taxes Cash Flow | H229: =H215-H227 -> -1e-07 | I229: -12155.55556 | J229: -12155.55556 | K229: -12155.55556 | L229: -12155.55556 | M229: -12155.55556 | N229: -12155.55556 | O229: -12155.55556 | P229: -12155.55556 | Q229: -12155.55556 | R229: -12155.55556 | S229: -12155.55556 | T229: -12155.55556 | U229: -12155.55556 | V229: -12155.55556 | W229: -12155.55556 | X229: -12155.55556 | Y229: -12155.55556 | Z229: -12155.55556 | AA229: 16825.4313 | AB229: 17089.00659 | AC229: 17357.85339 | AD229: 17632.07712 | AE229: 17911.78533 | AF229: 17995.26958 | AG229: 18275.96763 | AH229: 18562.14161 | AI229: 18853.898 | AJ229: 19151.34536 | AK229: 18571.63928 | AL229: 18852.61652 | AM229: 15492.12611 | AN229: =AN215-AN227 -> 15783.59527 | AO229: 16080.45284 | AP229: 15896.33276 | AQ229: 16322.62995 | AR229: 16757.45307 | AS229: 17200.97267 | AT229: 17653.36265 | AU229: 18114.80043 | AV229: 18585.46697 | AW229: 19065.54684 | AX229: 19555.22831 | AY229: 20054.7034 | AZ229: 20564.168 | BA229: 21083.82189 | BB229: 21613.86886 | BC229: 22154.51677 | BD229: 22705.97763 | BE229: 0 | BF229: 0 | BG229: 0 | BH229: 0 | BI229: 0 | BJ229: 0 | BK229: 0 | BL229: 0 | BM229: 0 | BN229: 0 | BO229: 0 | BP229: 0
B230: After Tax project IRR | F230: =XIRR(I229:BP229,I8:BP8) -> 0.06691386402
A232: Project Finance - Summary Sources and Uses and Debt Size
B233: Uses and sources of funds
C234: Uses of funds
D235: EPC Cost | H235: =I193 -> 218800
D236: Development fees | H236: =J236*1000 -> 0 | J236: 0
D237: Development costs
D238: IDC
D239: Up-front fees
D240: DSRA
D241: Total | H241: =SUM(H235:H240) -> 218800
C243: Sources of funds | F243: Method | H243: Applied | J243: Fixed | K243: Sculpted | L243: Debt/Cap
D244: Debt | F244: 2 | H244: =CHOOSE(F244,J244,K244,L244) -> 147930.586 | K244: =E393 -> 147930.586 | L244: =H241*M244 -> 175040 | M244: =F67 -> 0.8
D245: Equity | H245: =H241-H244 -> 70869.41397
D246: Total | H246: =SUM(H244:H245) -> 218800
D248: Up-Front Equity | F248: =F72 -> 0.2 | H248: =H245*F248 -> 14173.88279
D249: Pro-Rata | H249: =H246-H248 -> 204626.1172
D250: Debt Percent Pro-Rata | H250: =H244/H249 -> 0.7229311099
D251: Equity Percent Pro-Rata | H251: =1-H250 -> 0.2770688901
A253: Funding During Construction
C254: Uses of funds
D255: EPC Cost | I255: =I195 -> 12155.55556 | J255: 12155.55556 | K255: 12155.55556 | L255: 12155.55556 | M255: 12155.55556 | N255: 12155.55556 | O255: 12155.55556 | P255: 12155.55556 | Q255: 12155.55556 | R255: 12155.55556 | S255: 12155.55556 | T255: 12155.55556 | U255: 12155.55556 | V255: 12155.55556 | W255: 12155.55556 | X255: 12155.55556 | Y255: 12155.55556 | Z255: 12155.55556 | AA255: 0 | AB255: 0 | AC255: 0 | AD255: 0 | AE255: 0 | AF255: 0 | AG255: 0 | AH255: 0 | AI255: 0 | AJ255: 0 | AK255: 0 | AL255: 0 | AM255: 0
D256: Development fees | E256: =H236 -> 0 | I256: =E256 -> 0
D257: Development costs | E257: =H237 -> 0 | I257: =E257 -> 0
D258: IDC
D259: Up-front fees
D260: DSRA
D261: Total | I261: =SUM(I255:I260) -> 12155.55556 | J261: =SUM(J255:J260) -> 12155.55556 | K261: 12155.55556 | L261: 12155.55556 | M261: 12155.55556 | N261: 12155.55556 | O261: 12155.55556 | P261: 12155.55556 | Q261: 12155.55556 | R261: 12155.55556 | S261: 12155.55556 | T261: 12155.55556 | U261: 12155.55556 | V261: 12155.55556 | W261: 12155.55556 | X261: 12155.55556 | Y261: 12155.55556 | Z261: 12155.55556 | AA261: 0 | AB261: 0 | AC261: 0 | AD261: 0 | AE261: 0 | AF261: 0 | AG261: 0 | AH261: 0 | AI261: 0 | AJ261: 0 | AK261: 0 | AL261: 0 | AM261: 0
B263: Equity Up-Front
C264: Total Equity Up-Front | F264: =F72 -> 0.2 | G264: =F264*H245 -> 14173.88279 | I264: =$G$264 -> 14173.88279 | J264: =$G$264 -> 14173.88279 | K264: 14173.88279 | L264: 14173.88279 | M264: 14173.88279 | N264: 14173.88279 | O264: 14173.88279 | P264: 14173.88279 | Q264: 14173.88279 | R264: 14173.88279 | S264: 14173.88279 | T264: 14173.88279 | U264: 14173.88279 | V264: 14173.88279 | W264: 14173.88279 | X264: 14173.88279 | Y264: 14173.88279 | Z264: 14173.88279 | AA264: 14173.88279 | AB264: 14173.88279 | AC264: 14173.88279 | AD264: 14173.88279 | AE264: 14173.88279 | AF264: 14173.88279 | AG264: 14173.88279 | AH264: 14173.88279 | AI264: 14173.88279 | AJ264: 14173.88279 | AK264: 14173.88279 | AL264: 14173.88279 | AM264: 14173.88279
C265: Less: Opening Balance Below | I265: =I268 -> 0 | J265: 12155.55556 | K265: 14173.88279 | L265: 14173.88279 | M265: 14173.88279 | N265: 14173.88279 | O265: 14173.88279 | P265: 14173.88279 | Q265: 14173.88279 | R265: 14173.88279 | S265: 14173.88279 | T265: 14173.88279 | U265: 14173.88279 | V265: 14173.88279 | W265: 14173.88279 | X265: 14173.88279 | Y265: 14173.88279 | Z265: 14173.88279 | AA265: 14173.88279 | AB265: 14173.88279 | AC265: 14173.88279 | AD265: 14173.88279 | AE265: 14173.88279 | AF265: 14173.88279 | AG265: 14173.88279 | AH265: 14173.88279 | AI265: 14173.88279 | AJ265: 14173.88279 | AK265: 14173.88279 | AL265: 14173.88279 | AM265: 14173.88279
C266: Remaining Balance | I266: =I264-I265 -> 14173.88279 | J266: =J264-J265 -> 2018.327239 | K266: 0 | L266: 0 | M266: 0 | N266: 0 | O266: 0 | P266: 0 | Q266: 0 | R266: 0 | S266: 0 | T266: 0 | U266: 0 | V266: 0 | W266: 0 | X266: 0 | Y266: 0 | Z266: 0 | AA266: 0 | AB266: 0 | AC266: 0 | AD266: 0 | AE266: 0 | AF266: 0 | AG266: 0 | AH266: 0 | AI266: 0 | AJ266: 0 | AK266: 0 | AL266: 0 | AM266: 0
C268: Opening Balance | I268: =H270 -> 0 | J268: =I270 -> 12155.55556 | K268: 14173.88279 | L268: 14173.88279 | M268: 14173.88279 | N268: 14173.88279 | O268: 14173.88279 | P268: 14173.88279 | Q268: 14173.88279 | R268: 14173.88279 | S268: 14173.88279 | T268: 14173.88279 | U268: 14173.88279 | V268: 14173.88279 | W268: 14173.88279 | X268: 14173.88279 | Y268: 14173.88279 | Z268: 14173.88279 | AA268: 14173.88279 | AB268: 14173.88279 | AC268: 14173.88279 | AD268: 14173.88279 | AE268: 14173.88279 | AF268: 14173.88279 | AG268: 14173.88279 | AH268: 14173.88279 | AI268: 14173.88279 | AJ268: 14173.88279 | AK268: 14173.88279 | AL268: 14173.88279 | AM268: 14173.88279
C269: Add: New Financing - Min(Needs, Remaining) | I269: =MIN(I266,I261) -> 12155.55556 | J269: =MIN(J266,J261) -> 2018.327239 | K269: =MIN(K266,K261) -> 0 | L269: 0 | M269: 0 | N269: 0 | O269: 0 | P269: 0 | Q269: 0 | R269: 0 | S269: 0 | T269: 0 | U269: 0 | V269: 0 | W269: 0 | X269: 0 | Y269: 0 | Z269: 0 | AA269: 0 | AB269: 0 | AC269: 0 | AD269: 0 | AE269: 0 | AF269: 0 | AG269: 0 | AH269: 0 | AI269: 0 | AJ269: 0 | AK269: 0 | AL269: 0 | AM269: 0
C270: Closing Balance | I270: =I268+I269 -> 12155.55556 | J270: =J268+J269 -> 14173.88279 | K270: 14173.88279 | L270: 14173.88279 | M270: 14173.88279 | N270: 14173.88279 | O270: 14173.88279 | P270: 14173.88279 | Q270: 14173.88279 | R270: 14173.88279 | S270: 14173.88279 | T270: 14173.88279 | U270: 14173.88279 | V270: 14173.88279 | W270: 14173.88279 | X270: 14173.88279 | Y270: 14173.88279 | Z270: 14173.88279 | AA270: 14173.88279 | AB270: 14173.88279 | AC270: 14173.88279 | AD270: 14173.88279 | AE270: 14173.88279 | AF270: 14173.88279 | AG270: 14173.88279 | AH270: 14173.88279 | AI270: 14173.88279 | AJ270: 14173.88279 | AK270: 14173.88279 | AL270: 14173.88279 | AM270: 14173.88279
C272: Remaining Funding Needs | I272: =I261-I269 -> 0 | J272: =J261-J269 -> 10137.22832 | K272: 12155.55556 | L272: 12155.55556 | M272: 12155.55556 | N272: 12155.55556 | O272: 12155.55556 | P272: 12155.55556 | Q272: 12155.55556 | R272: 12155.55556 | S272: 12155.55556 | T272: 12155.55556 | U272: 12155.55556 | V272: 12155.55556 | W272: 12155.55556 | X272: 12155.55556 | Y272: 12155.55556 | Z272: 12155.55556 | AA272: 0 | AB272: 0 | AC272: 0 | AD272: 0 | AE272: 0 | AF272: 0 | AG272: 0 | AH272: 0 | AI272: 0 | AJ272: 0 | AK272: 0 | AL272: 0 | AM272: 0
C274: Debt Pro-Rata Funding | F274: =H250 -> 0.7229311099 | I274: =$F274*I$272 -> 0 | J274: =$F274*J$272 -> 7328.517718 | K274: 8787.629269 | L274: 8787.629269 | M274: 8787.629269 | N274: 8787.629269 | O274: 8787.629269 | P274: 8787.629269 | Q274: 8787.629269 | R274: 8787.629269 | S274: 8787.629269 | T274: 8787.629269 | U274: 8787.629269 | V274: 8787.629269 | W274: 8787.629269 | X274: 8787.629269 | Y274: 8787.629269 | Z274: 8787.629269 | AA274: 0 | AB274: 0 | AC274: 0 | AD274: 0 | AE274: 0 | AF274: 0 | AG274: 0 | AH274: 0 | AI274: 0 | AJ274: 0 | AK274: 0 | AL274: 0 | AM274: 0
... 250 more rows

Sheet Scenario sheet
A2: Code number | B2: 2
B4: 0 | C4: 1 | D4: 4 | E4: 7 | F4: 10 | G4: 13
A5: Term sheet | B5: 0.0425 | C5: 0.0437 | D5: 0.045 | E5: 0.0475 | F5: 0.05 | G5: 0.055
A6: Base case | B6: 0.0425 | C6: 0.03 | D6: 0.03 | E6: 0.03 | F6: 0.03 | G6: 0.03
A7: Upside case | B7: 0.0425 | C7: 0.02 | D7: 0.02 | E7: 0.02 | F7: 0.02 | G7: 0.02
A9: =INDEX(A5:A7,$B$2) -> Base case | B9: =INDEX(B5:B7,$B$2) -> 0.0425 | C9: 0.03 | D9: 0.03 | E9: 0.03 | F9: 0.03 | G9: 0.03
A15: P50 Base Case
A16: P99 Worst Case | G16: 1
A17: P90 Downside

Sheet Solar P90

Sheet Term Sheet

Sheet Uncertainty (2)
B2: Wind Speed | D2: Energy | F2: Square | G2: Square Root
B3: [%] | C3: [m/s] | D3: [%] | E3: [GWh/yr]
A4: Anemometer | B4: 2 | C4: 0.15
A5: Period representative of long term | B5: 3.6 | C5: 0.27
A6: Cross Synthesis from Paijan | B6: 0.2 | C6: 0.02
A7: Overall historical wind speed | C7: 0.31 | E7: 12.17 | F7: =E7^2 -> 148.1089 | I7: =_xlfn.FORMULATEXT(F7) -> =E7^2
A8: Substation metering | D8: 0.3 | E8: 0.43 | F8: =E8^2 -> 0.1849
A9: Wake and topographic calculation | D9: 6 | E9: 8.59 | F9: 73.7881
A10: Energy loss factor assumptions | D10: 3 | E10: 4.29 | F10: 18.4041
A11: Map | D11: 2 | E11: 2.86 | F11: 8.1796
A13: Future wind variability 1-year | B13: 6 | C13: 0.45 | E13: 17.7 | F13: 313.29
A14: Future wind variability 10-years | B14: 1.9 | C14: 0.14 | E14: 5.6 | F14: 31.36
A16: Overall energy uncertainty 1-year | E16: 23.71 | F16: =SUM(F7:F13) -> 561.9556 | G16: =F16^0.5 -> 23.70560271 | I16: =_xlfn.FORMULATEXT(G16) -> =F16^0.5
A17: Overall energy uncertainty 10-years | E17: 16.73 | F17: =SUM(F7:F11)+F14 -> 280.0256 | G17: =F17^0.5 -> 16.73396546
F19: =_xlfn.FORMULATEXT(F17) -> =SUM(F7:F11)+F14
A21: Estimated Production | E21: 143.1666667
A22: Wind Variability Percent | E22: =E13/E21 -> 0.1236321304
E24: One-yr | F24: 10-yr
A25: Probability | B25: P99 | D25: 0.01 | E25: =_xlfn.NORM.INV($D25,$E$21,$G$16) -> 88.01918819 | F25: =_xlfn.NORM.INV($D25,$E$21,$G$17) -> 104.2376417
D26: 0.05 | E26: =_xlfn.NORM.INV($D26,$E$21,$G$16) -> 104.1744201 | F26: =_xlfn.NORM.INV($D26,$E$21,$G$17) -> 115.6417429
D27: 0.1 | E27: =_xlfn.NORM.INV($D27,$E$21,$G$16) -> 112.7867144 | F27: =_xlfn.NORM.INV($D27,$E$21,$G$17) -> 121.721227
D28: 0.5 | E28: =_xlfn.NORM.INV($D28,$E$21,$G$16) -> 143.1666667 | F28: =_xlfn.NORM.INV($D28,$E$21,$G$17) -> 143.1666667
A30: P99 vs P50 | E30: =E25/E28 -> 0.6148022458 | F30: =F25/F28 -> 0.7280859723
